fUSD/lending_fUSD_20240117
["ID","MTS","AMOUNT","RATE_DAILY","PERIOD"]
[311862151,1705476687527,-500.0,0.00023286,2]
[311862152,1705476687536,-500.0,0.00023286,2]
[311862153,1705476687545,-500.0,0.00023286,2]
[311862154,1705476687554,-906.08,0.00023286,2]
[311862155,1705476687564,-975.52,0.00023286,2]
[311862156,1705476687574,-581.8,0.00023286,2]
[311862157,1705476687583,-650.9,0.00023286,2]
[311862158,1705476687593,-500.0,0.00023286,2]
[311862159,1705476687602,-500.0,0.00023286,2]
[311862160,1705476687611,-614.11787913,0.00023286,2]
[311862161,1705476687621,-503.15061692,0.00023286,2]
[311862162,1705476687630,-1000.0,0.00023286,2]
[311862163,1705476687639,-500.0,0.00023286,2]
[311862164,1705476687649,-500.0,0.00023286,2]
[311862165,1705476687658,-500.0,0.00023286,2]
[311862166,1705476687668,-500.0,0.00023286,2]
[311862167,1705476687677,-627.23,0.00023286,2]
[311862168,1705476687686,-500.0,0.00023286,2]
[311862169,1705476687696,-576.41,0.00023286,2]
[311862170,1705476687705,-500.0,0.00023286,2]
[311862171,1705476687714,-500.0,0.00023286,2]
[311862172,1705476687723,-500.0,0.00023286,2]
[311862173,1705476687733,-500.0,0.00023286,2]
[311862174,1705476687741,-586.98,0.00023286,2]
[311862175,1705476687751,-500.0,0.00023286,2]
[311862176,1705476687760,-708.27,0.00023286,2]
[311862177,1705476687769,-500.0,0.00023286,2]
[311862178,1705476687778,-500.0,0.00023286,2]
[311862179,1705476687787,-860.9,0.00023286,2]
[311862180,1705476687796,-655.27,0.00023286,2]
[311862181,1705476687804,-624.54,0.00023286,2]
[311862182,1705476687814,-500.0,0.00023286,2]
[311862183,1705476687823,-539.08362414,0.00023286,2]
[311862184,1705476687833,-563.42,0.00023286,2]
[311862185,1705476687842,-500.0,0.00023286,2]
[311862186,1705476687851,-500.0,0.00023286,2]
[311862187,1705476687860,-919.02,0.00023286,2]
[311862188,1705476687869,-500.0,0.00023286,2]
[311862189,1705476687879,-783.35,0.00023286,2]
[311862190,1705476687888,-517.20326724,0.00023286,2]
[311862191,1705476687897,-531.13,0.00023286,2]
[311862192,1705476687906,-1113.82,0.00023286,2]
[311862193,1705476687916,-500.0,0.00023286,2]
[311862194,1705476687925,-500.0,0.00023286,2]
[311862195,1705476687934,-510.16914197,0.00023286,2]
[311862196,1705476687943,-500.0,0.00023286,2]
[311862197,1705476687952,-1012.52,0.00023286,2]
[311862198,1705476687960,-500.0,0.00023286,2]
[311862199,1705476687970,-500.0,0.00023286,2]
[311862200,1705476687979,-500.0,0.00023286,2]
[311862201,1705476687988,-500.0,0.00023286,2]
[311862202,1705476687997,-634.19,0.00023286,2]
[311862203,1705476688006,-500.0,0.00023286,2]
[311862204,1705476688016,-500.0,0.00023286,2]
[311862205,1705476688025,-500.0,0.00023286,2]
[311862206,1705476688035,-500.0,0.00023286,2]
[311862207,1705476688044,-500.0,0.00023286,2]
[311862208,1705476688053,-500.0,0.00023286,2]
[311862209,1705476688063,-478.62618709,0.00023286,2]
[311862210,1705476688072,-548.13,0.00023286,2]
[311862211,1705476688082,-805.41,0.00023286,2]
[311862212,1705476688091,-500.0,0.00023286,2]
[311862213,1705476688100,-555.05,0.00023286,2]
[311862214,1705476688109,-500.0,0.00023286,2]
[311862215,1705476688118,-500.0,0.00023286,2]
[311862216,1705476688128,-500.0,0.00023286,2]
[311862217,1705476688137,-500.0,0.00023286,2]
[311862218,1705476688148,-500.0,0.00023286,2]
[311862219,1705476688157,-531.88,0.00023286,2]
[311862220,1705476688167,-500.0,0.00023286,2]
[311862221,1705476688176,-500.0,0.00023286,2]
[311862222,1705476688186,-805.22,0.00023286,2]
[311862223,1705476688195,-702.82,0.00023286,2]
[311862224,1705476688204,-367.66523929,0.00023286,2]
[311862225,1705476688213,-500.0,0.00023286,2]
[311862226,1705476688222,-500.0,0.00023286,2]
[311862227,1705476688232,-500.0,0.00023286,2]
[311862228,1705476688241,-719.85,0.00023286,2]
[311862229,1705476688251,-430.33391758,0.00023286,2]
[311862230,1705476688260,-500.0,0.00023286,2]
[311862231,1705476688270,-500.0,0.00023286,2]
[311862232,1705476688279,-631.43,0.00023286,2]
[311862233,1705476688288,-500.0,0.00023286,2]
[311862234,1705476688298,-763.12,0.00023286,2]
[311862235,1705476688307,-500.0,0.00023286,2]
[311862236,1705476688317,-500.0,0.00023286,2]
[311862237,1705476688326,-510.4629262,0.00023286,2]
[311862238,1705476688336,-500.0,0.00023286,2]
[311862239,1705476688345,-500.0,0.00023286,2]
[311862240,1705476688355,-500.0,0.00023286,2]
[311862241,1705476688365,-500.0,0.00023286,2]
[311862242,1705476688375,-500.0,0.00023286,2]
[311862243,1705476688385,-500.0,0.00023286,2]
[311862244,1705476688400,-500.0,0.00023286,2]
[311862245,1705476688409,-859.33,0.00023286,2]
[311862246,1705476688419,-500.0,0.00023286,2]
[311862247,1705476688428,-500.0,0.00023286,2]
[311862248,1705476688439,-613.02,0.00023286,2]
[311862249,1705476688448,-500.0,0.00023286,2]
[311862250,1705476688458,-737.74,0.00023286,2]
[311862251,1705476688467,-778.55,0.00023286,2]
[311862252,1705476688480,-777.26,0.00023286,2]
[311862253,1705476688489,-529.27,0.00023286,2]
[311862254,1705476688498,-500.0,0.00023286,2]
[311862255,1705476688507,-639.14,0.00023286,2]
[311862256,1705476688517,-500.0,0.00023286,2]
[311862257,1705476688526,-500.0,0.00023286,2]
[311862258,1705476688536,-500.0,0.00023286,2]
[311862259,1705476688545,-500.0,0.00023286,2]
[311862260,1705476688555,-500.0,0.00023286,2]
[311862261,1705476688565,-603.06059421,0.00023286,2]
[311862262,1705476688574,-500.0,0.00023286,2]
[311862263,1705476688584,-217.06465598,0.00023286,2]
[311862264,1705476688594,-529.72,0.00023286,2]
[311862265,1705476688603,-500.0,0.00023286,2]
[311862266,1705476688612,-500.0,0.00023286,2]
[311862267,1705476688622,-581.21,0.00023286,2]
[311862268,1705476688632,-688.75,0.00023286,2]
[311862269,1705476688642,-547.96,0.00023286,2]
[311862270,1705476688653,-500.0,0.00023286,2]
[311862271,1705476688663,-500.0,0.00023286,2]
[311862272,1705476688672,-511.38359908,0.00023286,2]
[311862273,1705476688682,-500.0,0.00023286,2]
[311862274,1705476688691,-500.0,0.00023286,2]
[311862275,1705476688701,-673.83,0.00023286,2]
[311862276,1705476688710,-694.09,0.00023286,2]
[311862277,1705476688719,-500.0,0.00023286,2]
[311862278,1705476688729,-500.0,0.00023286,2]
[311862279,1705476688738,-500.0,0.00023286,2]
[311862280,1705476688747,-500.0,0.00023286,2]
[311862281,1705476688757,-828.88,0.00023286,2]
[311862282,1705476688766,-650.33,0.00023286,2]
[311862283,1705476688776,-742.88,0.00023286,2]
[311862284,1705476688785,-642.23,0.00023286,2]
[311862285,1705476688794,-500.0,0.00023286,2]
[311862286,1705476688804,-500.0,0.00023286,2]
[311862287,1705476688813,-500.0,0.00023286,2]
[311862288,1705476688822,-500.0,0.00023286,2]
[311862289,1705476688832,-500.0,0.00023286,2]
[311862290,1705476688841,-500.0,0.00023286,2]
[311862291,1705476688850,-500.0,0.00023286,2]
[311862292,1705476688860,-500.0,0.00023286,2]
[311862293,1705476688869,-500.0,0.00023286,2]
[311862294,1705476688878,-500.0,0.00023286,2]
[311862295,1705476688887,-1027.67,0.00023286,2]
[311862296,1705476688898,-500.0,0.00023286,2]
[311862297,1705476688907,-505.30322147,0.00023286,2]
[311862298,1705476688916,-500.0,0.00023286,2]
[311862299,1705476688925,-500.0,0.00023286,2]
[311862300,1705476688934,-507.09427729,0.00023286,2]
[311862301,1705476688943,-500.0,0.00023286,2]
[311862302,1705476688953,-157.33642141,0.00023286,2]
[311862303,1705476688962,-500.0,0.00023286,2]
[311862304,1705476688971,-500.0,0.00023286,2]
[311862305,1705476688980,-689.28,0.00023286,2]
[311862306,1705476688989,-500.0,0.00023286,2]
[311862307,1705476688998,-500.0,0.00023286,2]
[311862308,1705476689008,-500.0,0.00023286,2]
[311862309,1705476689017,-500.0,0.00023286,2]
[311862310,1705476689026,-614.53,0.00023286,2]
[311862311,1705476689035,-500.0,0.00023286,2]
[311862312,1705476689044,-500.0,0.00023286,2]
[311862313,1705476689054,-500.0,0.00023286,2]
[311862314,1705476689063,-500.0,0.00023286,2]
[311862315,1705476689072,-954.37,0.00023286,2]
[311862316,1705476689081,-500.0,0.00023286,2]
[311862317,1705476689090,-822.41,0.00023286,2]
[311862318,1705476689099,-505.69917228,0.00023286,2]
[311862319,1705476689108,-500.0,0.00023286,2]
[311862320,1705476689118,-500.0,0.00023286,2]
[311862321,1705476689127,-500.0,0.00023286,2]
[311862322,1705476689137,-4651.03,0.00023286,2]
[311862323,1705476689147,-626.75419257,0.00023286,2]
[311862324,1705476689156,-500.0,0.00023286,2]
[311862325,1705476689165,-1552.7,0.00023286,2]
[311862326,1705476689174,-500.0,0.00023286,2]
[311862327,1705476689184,-500.0,0.00023286,2]
[311862328,1705476689193,-829.05,0.00023286,2]
[311862329,1705476689202,-811.11,0.00023286,2]
[311862330,1705476689211,-500.0,0.00023286,2]
[311862331,1705476689220,-1128.82,0.00023286,2]
[311862332,1705476689234,-500.0,0.00023286,2]
[311862333,1705476689243,-3139.34,0.00023286,2]
[311862334,1705476689253,-500.0,0.00023286,2]
[311862335,1705476689262,-3499.89,0.00023286,2]
[311862336,1705476689272,-500.0,0.00023286,2]
[311862337,1705476689281,-500.0,0.00023286,2]
[311862338,1705476689290,-500.0,0.00023286,2]
[311862339,1705476689299,-599.65,0.00023286,2]
[311862340,1705476689309,-500.0,0.00023286,2]
[311862341,1705476689318,-505.11,0.00023286,2]
[311862342,1705476689327,-12052.06,0.00023286,2]
[311862343,1705476689336,-18014.44,0.00023286,2]
[311862344,1705476689345,-517.58845987,0.00023286,2]
[311862345,1705476689355,-611.64005379,0.00023286,2]
[311862346,1705476689364,-483.67710762,0.00023286,2]
[311862347,1705476689374,-500.0,0.00023286,2]
[311862348,1705476689384,-778.19,0.00023286,2]
[311862349,1705476689394,-500.0,0.00023286,2]
[311862350,1705476689406,-500.0,0.00023286,2]
[311862351,1705476689416,-500.0,0.00023286,2]
[311862352,1705476689427,-500.0,0.00023286,2]
[311862353,1705476689437,-2864.71,0.00023286,2]
[311862354,1705476689447,-1076.87,0.00023286,2]
[311862355,1705476689456,-500.0,0.00023286,2]
[311862356,1705476689466,-500.0,0.00023286,2]
[311862357,1705476689475,-819.56,0.00023286,2]
[311862358,1705476689486,-500.0,0.00023286,2]
[311862359,1705476689497,-500.0,0.00023286,2]
[311862360,1705476689506,-3790.64,0.00023286,2]
[311862361,1705476689515,-945.27,0.00023286,2]
[311862362,1705476689524,-7628.74,0.00023286,2]
[311862363,1705476689533,-1034.03,0.00023286,2]
[311862364,1705476689544,-5122.21,0.00023286,2]
[311862365,1705476689554,-2624.09,0.00023286,2]
[311862366,1705476689564,-500.0,0.00023286,2]
[311862367,1705476689574,-2308.66,0.00023286,2]
[311862368,1705476689584,-2333.84,0.00023286,2]
[311862369,1705476689594,-941.51,0.00023286,2]
[311862370,1705476689603,-556.7,0.00023286,2]
[311862371,1705476689613,-500.0,0.00023286,2]
[311862372,1705476689622,-1350.94,0.00023286,2]
[311862373,1705476689634,-500.0,0.00023286,2]
[311862374,1705476689645,-500.0,0.00023286,2]
[311862375,1705476689656,-524.75,0.00023286,2]
[311862376,1705476689666,-5806.04,0.00023286,2]
[311862377,1705476689675,-569.61,0.00023286,2]
[311862378,1705476689683,-843.26,0.00023286,2]
[311862379,1705476689693,-500.0,0.00023286,2]
[311862380,1705476689702,-4815.06,0.00023286,2]
[311862381,1705476689711,-521.67,0.00023286,2]
[311862382,1705476689720,-500.0,0.00023286,2]
[311862383,1705476689729,-500.0,0.00023286,2]
[311862384,1705476689739,-3247.29,0.00023286,2]
[311862385,1705476689748,-500.0,0.00023286,2]
[311862386,1705476689758,-760.98,0.00023286,2]
[311862387,1705476689768,-9480.4,0.00023286,2]
[311862388,1705476689778,-500.0,0.00023286,2]
[311862389,1705476689788,-684.79,0.00023286,2]
[311862390,1705476689797,-4527.36,0.00023286,5]
[311862391,1705476689808,-500.0,0.00023286,2]
[311862392,1705476689819,-500.0,0.00023286,2]
[311862393,1705476689829,-500.0,0.00023286,2]
[311862394,1705476689839,-500.0,0.00023286,2]
[311862395,1705476689849,-500.0,0.00023286,2]
[311862396,1705476689860,-500.0,0.00023286,2]
[311862397,1705476689869,-500.0,0.00023286,2]
[311862398,1705476689880,-500.0,0.00023286,2]
[311862399,1705476689890,-5872.34,0.00023286,2]
[311862400,1705476689900,-2431.68,0.00023286,2]
[311862401,1705476689910,-500.0,0.00023286,2]
[311862402,1705476689919,-739.91,0.00023286,2]
[311862403,1705476689929,-500.0,0.00023286,2]
[311862404,1705476689939,-555.72,0.00023286,2]
[311862405,1705476689949,-742.68,0.00023286,2]
[311862406,1705476689959,-500.0,0.00023286,2]
[311862407,1705476689968,-500.0,0.00023286,2]
[311862408,1705476689978,-500.0,0.00023286,2]
[311862409,1705476689988,-500.0,0.00023286,2]
[311862410,1705476689998,-672.14,0.00023286,2]
[311862411,1705476690008,-500.0,0.00023286,2]
[311862412,1705476690018,-500.0,0.00023286,2]
[311862413,1705476690028,-370.29,0.00023286,2]
[311862414,1705476690038,-2774.18,0.00023286,2]
[311862415,1705476690048,-1434.82,0.00023287,2]
[311862416,1705476690058,-1611.84,0.00023287,2]
[311862417,1705476690068,-1366.67,0.00023287,2]
[311862418,1705476690079,-653.08,0.00023287,2]
[311862419,1705476690089,-632.88,0.00023287,2]
[311862420,1705476690099,-619.51,0.00023287,2]
[311862421,1705476690110,-500.0,0.00023287,2]
[311862422,1705476690120,-573.44,0.00023287,2]
[311862423,1705476690129,-1179.97,0.00023287,2]
[311862424,1705476690141,-500.0,0.00023287,2]
[311862425,1705476690150,-506.94,0.00023287,2]
[311862426,1705476690160,-500.0,0.00023287,2]
[311862427,1705476690170,-544.36,0.00023287,2]
[311862428,1705476690179,-983.54,0.00023287,2]
[311862429,1705476690189,-1120.89,0.00023287,2]
[311862430,1705476690200,-833.89,0.00023287,2]
[311862431,1705476690210,-1119.96,0.00023287,2]
[311862432,1705476690220,-1194.46,0.00023287,2]
[311862433,1705476690230,-1392.34,0.00023287,2]
[311862434,1705476690240,-847.87,0.00023287,2]
[311862435,1705476690250,-1529.23,0.00023287,2]
[311862436,1705476690260,-500.0,0.00023287,2]
[311862437,1705476690270,-1493.13,0.00023287,2]
[311862438,1705476690282,-1181.68,0.00023287,2]
[311862439,1705476690292,-1368.82,0.00023287,2]
[311862440,1705476690303,-1036.23,0.00023287,2]
[311862441,1705476690313,-1584.15,0.00023287,2]
[311862442,1705476690325,-972.9,0.00023287,2]
[311862443,1705476690336,-554.38,0.00023287,2]
[311862444,1705476690346,-1666.38,0.00023287,2]
[311862445,1705476690356,-1024.95,0.00023287,2]
[311862446,1705476690366,-830.41,0.00023287,2]
[311862447,1705476690376,-500.0,0.00023287,2]
[311862448,1705476690386,-1117.15,0.00023287,2]
[311862449,1705476690399,-530.03,0.00023287,2]
[311862450,1705476690410,-1307.76,0.00023287,2]
[311862451,1705476690420,-1289.65,0.00023287,2]
[311862452,1705476690430,-500.0,0.00023287,2]
[311862453,1705476690440,-500.0,0.00023287,2]
[311862454,1705476690450,-1046.46,0.00023287,2]
[311862455,1705476690460,-1248.85,0.00023287,2]
[311862456,1705476690470,-1637.93,0.00023287,2]
[311862457,1705476690481,-1066.89,0.00023287,2]
[311862458,1705476690491,-1459.88,0.00023287,2]
[311862459,1705476690501,-753.58,0.00023287,2]
[311862460,1705476690511,-1256.18,0.00023287,2]
[311862461,1705476690521,-500.0,0.00023287,2]
[311862462,1705476690531,-598.95,0.00023287,2]
[311862463,1705476690541,-1345.89,0.00023287,2]
[311862464,1705476690555,-561.88,0.00023287,2]
[311862465,1705476690565,-616.63,0.00023287,2]
[311862466,1705476690575,-1089.66,0.00023287,2]
[311862467,1705476690585,-500.0,0.00023287,2]
[311862468,1705476690595,-1259.68,0.00023287,7]
[311862469,1705476690605,-924.37,0.00023287,2]
[311862470,1705476690616,-1723.56,0.00023287,2]
[311862471,1705476690627,-629.54,0.00023287,2]
[311862472,1705476690637,-500.0,0.00023287,2]
[311862473,1705476690648,-1338.16,0.00023287,2]
[311862474,1705476690659,-1212.93,0.00023287,2]
[311862475,1705476690669,-813.57,0.00023287,2]
[311862476,1705476690679,-1386.78,0.00023287,2]
[311862477,1705476690690,-1840.63,0.00023287,2]
[311862478,1705476690700,-500.0,0.00023287,2]
[311862479,1705476690710,-793.74,0.00023287,2]
[311862480,1705476690720,-1325.41,0.00023287,2]
[311862481,1705476690730,-500.0,0.00023287,2]
[311862482,1705476690740,-1108.93,0.00023287,2]
[311862483,1705476690750,-1624.2,0.00023287,2]
[311862484,1705476690761,-4556.22,0.00023287,2]
[311862485,1705476690771,-500.0,0.00023287,2]
[311862486,1705476690781,-500.0,0.00023287,2]
[311862487,1705476690791,-500.0,0.00023287,2]
[311862488,1705476690801,-1833.09,0.00023287,2]
[311862489,1705476690812,-2110.2,0.00023287,2]
[311862490,1705476690822,-1719.95,0.00023287,2]
[311862491,1705476690832,-1358.36,0.00023287,2]
[311862492,1705476690843,-1348.57,0.00023287,2]
[311862493,1705476690853,-500.0,0.00023287,2]
[311862494,1705476690863,-1356.42,0.00023287,2]
[311862495,1705476690875,-3068.84,0.00023287,2]
[311862496,1705476690885,-1335.4,0.00023287,2]
[311862497,1705476690896,-1349.22,0.00023287,2]
[311862498,1705476690906,-1910.78,0.00023287,2]
[311862499,1705476690916,-762.08,0.00023287,2]
[311862500,1705476690927,-910.9,0.00023287,2]
[311862501,1705476690937,-1630.08,0.00023287,2]
[311862502,1705476690947,-500.0,0.00023287,2]
[311862503,1705476690957,-1795.97,0.00023287,2]
[311862504,1705476690968,-500.0,0.00023287,2]
[311862505,1705476690978,-3758.51,0.00023287,2]
[311862506,1705476690988,-1990.88,0.00023287,2]
[311862507,1705476690999,-1293.57,0.00023287,2]
[311862508,1705476691009,-1347.86,0.00023287,2]
[311862509,1705476691019,-4466.86,0.00023287,2]
[311862510,1705476691029,-2806.33,0.00023287,2]
[311862511,1705476691039,-500.0,0.00023287,2]
[311862512,1705476691049,-4702.16,0.00023287,5]
[311862513,1705476691059,-975.21,0.00023287,2]
[311862514,1705476691070,-7857.97,0.00023287,2]
[311862515,1705476691081,-661.36,0.00023287,2]
[311862516,1705476691091,-3379.77,0.00023287,2]
[311862517,1705476691101,-745.19,0.00023287,2]
[311862518,1705476691111,-6444.76,0.00023287,2]
[311862519,1705476691121,-1124.19,0.00023287,2]
[311862520,1705476691132,-3704.26,0.00023287,2]
[311862521,1705476691142,-906.36,0.00023287,2]
[311862522,1705476691152,-16162.54,0.00023287,2]
[311862523,1705476691162,-12434.26,0.00023287,2]
[311862524,1705476691173,-9482.71,0.00023287,2]
[311862525,1705476691183,-11109.93,0.00023287,2]
[311862526,1705476691192,-3256.16,0.00023287,2]
[311862527,1705476691202,-745.97,0.00023287,2]
[311862528,1705476691212,-1640.28,0.00023287,2]
[311862529,1705476691222,-7022.35440696,0.00023287,2]
[311862530,1705476692291,-500.0,0.00022739,2]
[311862531,1705476692301,-204.13939175,0.00023287,2]
[311862532,1705476692407,-390.030471,0.00021918,2]
[311862533,1705476692417,-1581.82,0.00022738,2]
[311862534,1705476692427,-12995.39620129,0.00023287,2]
[311862535,1705476692438,-3399.11,0.00023287,2]
[311862536,1705476692449,-454.52,0.00023287,2]
[311862537,1705476692459,-6354.09,0.00023287,2]
[311862538,1705476692468,-2538.4,0.00023287,2]
[311862539,1705476692478,-500.0,0.00023287,2]
[311862540,1705476692488,-500.0,0.00023287,2]
[311862541,1705476692497,-1837.55,0.00023287,2]
[311862542,1705476692507,-2659.91,0.00023287,2]
[311862543,1705476692516,-1254.9,0.00023287,2]
[311862544,1705476692525,-768.69,0.00023287,2]
[311862545,1705476692534,-4127.52,0.00023287,2]
[311862546,1705476692543,-804.83,0.00023287,2]
[311862547,1705476692553,-1027.34,0.00023287,2]
[311862548,1705476692562,-170.84,0.00023287,2]
[311862549,1705476692573,-4922.61036021,0.00023287,2]
[311862550,1705476694052,-160.83536736,0.00021816,2]
[311862551,1705476694063,-625.76,0.00021917,2]
[311862552,1705476694072,-500.0,0.00021917,2]
[311862553,1705476694081,-500.0,0.00021917,2]
[311862554,1705476694090,-500.0,0.00021917,2]
[311862555,1705476694099,-500.0,0.00021917,2]
[311862556,1705476694109,-500.0,0.00021917,2]
[311862557,1705476694118,-390.030471,0.00021918,2]
[311862558,1705476694128,-390.030471,0.00021918,2]
[311862559,1705476694138,-390.030471,0.00021918,2]
[311862560,1705476694148,-390.030471,0.00022091,7]
[311862561,1705476694158,-500.0,0.0002219,2]
[311862562,1705476694167,-500.0,0.0002219,2]
[311862563,1705476694176,-390.030471,0.0002219,7]
[311862564,1705476694186,-390.030471,0.0002219,7]
[311862565,1705476694196,-390.030463,0.0002219,7]
[311862566,1705476694207,-625.76,0.00022191,2]
[311862567,1705476694217,-500.0,0.00022191,2]
[311862568,1705476694226,-500.0,0.00022191,2]
[311862569,1705476694236,-500.0,0.00022464,2]
[311862570,1705476694245,-625.76,0.00022465,2]
[311862571,1705476694255,-500.0,0.00022465,2]
[311862572,1705476694265,-500.0,0.00022738,2]
[311862573,1705476694275,-625.76,0.00022739,2]
[311862574,1705476694285,-500.0,0.00022739,2]
[311862575,1705476694296,-500.0,0.00022988,2]
[311862576,1705476694308,-1581.82,0.00023012,2]
[311862577,1705476694318,-500.0,0.00023012,2]
[311862578,1705476694327,-500.0,0.00023013,2]
[311862579,1705476694336,-625.76,0.00023013,2]
[311862580,1705476694345,-500.0,0.00023013,2]
[311862581,1705476694356,-492.48869256,0.00023262,2]
[311862582,1705476694365,-1581.82,0.00023286,2]
[311862583,1705476694374,-500.0,0.00023286,2]
[311862584,1705476694384,-1289.28963979,0.00023287,2]
[311862585,1705476694397,-1135.57,0.00023287,2]
[311862586,1705476694407,-1394.59,0.00023287,2]
[311862587,1705476694417,-2527.38,0.00023287,2]
[311862588,1705476694427,-11978.73,0.00023287,2]
[311862589,1705476694437,-500.0,0.00023287,2]
[311862590,1705476694446,-1232.33,0.00023287,2]
[311862591,1705476694455,-1194.86,0.00023287,2]
[311862592,1705476694464,-1197.28,0.00023287,2]
[311862593,1705476694476,-794.93,0.00023287,2]
[311862594,1705476694486,-1023.46,0.00023287,2]
[311862595,1705476694495,-1514.74,0.00023287,2]
[311862596,1705476694504,-1714.78,0.00023287,2]
[311862597,1705476694513,-12347.72,0.00023287,2]
[311862598,1705476694522,-689.66,0.00023287,2]
[311862599,1705476694532,-5216.21,0.00023287,2]
[311862600,1705476694541,-1686.52,0.00023287,2]
[311862601,1705476694550,-2845.05,0.00023287,2]
[311862602,1705476694559,-2569.42,0.00023287,2]
[311862603,1705476694568,-873.47,0.00023287,2]
[311862604,1705476694579,-3061.14,0.00023287,2]
[311862605,1705476694588,-21768.2,0.00023287,2]
[311862606,1705476694599,-1882.19,0.00023287,2]
[311862607,1705476694610,-3382.23,0.00023287,2]
[311862608,1705476694621,-544.36,0.00023287,2]
[311862609,1705476694632,-1718.95,0.00023287,2]
[311862610,1705476694642,-1892.99,0.00023287,2]
[311862611,1705476694651,-2729.13,0.00023287,2]
[311862612,1705476694660,-1110.88,0.00023287,2]
[311862613,1705476694670,-1472.6,0.00023287,2]
[311862614,1705476694678,-1521.32,0.00023287,2]
[311862615,1705476694689,-7299.5,0.00023287,2]
[311862616,1705476694700,-6042.66,0.00023287,2]
[311862617,1705476694711,-2221.72,0.00023287,2]
[311862618,1705476694721,-2832.83,0.00023287,2]
[311862619,1705476694731,-1150.25,0.00023287,2]
[311862620,1705476694740,-1558.01,0.00023287,2]
[311862621,1705476694749,-1098.97,0.00023287,2]
[311862622,1705476694758,-1166.21,0.00023287,2]
[311862623,1705476694767,-500.0,0.00023287,2]
[311862624,1705476694775,-1069.45,0.00023287,2]
[311862625,1705476694785,-2355.39,0.00023287,2]
[311862626,1705476694794,-3591.8,0.00023287,2]
[311862627,1705476694803,-1684.66,0.00023287,2]
[311862628,1705476694812,-2434.16,0.00023287,2]
[311862629,1705476694820,-500.0,0.00023287,2]
[311862630,1705476694831,-2606.94,0.00023287,2]
[311862631,1705476694839,-2406.41,0.00023287,2]
[311862632,1705476694848,-500.0,0.00023287,2]
[311862633,1705476694857,-1852.97,0.00023287,2]
[311862634,1705476694866,-1143.46,0.00023287,2]
[311862635,1705476694875,-3034.52,0.00023287,2]
[311862636,1705476694884,-500.0,0.00023287,2]
[311862637,1705476694894,-2106.34,0.00023287,2]
[311862638,1705476694903,-500.0,0.00023287,2]
[311862639,1705476694913,-6039.3,0.00023287,2]
[311862640,1705476694922,-500.0,0.00023287,2]
[311862641,1705476694932,-2689.31,0.00023287,2]
[311862642,1705476694942,-2935.07,0.00023287,2]
[311862643,1705476694952,-1479.69,0.00023287,2]
[311862644,1705476694961,-1497.87,0.00023287,2]
[311862645,1705476694971,-4181.77,0.00023287,2]
[311862646,1705476694980,-627.99,0.00023287,2]
[311862647,1705476694989,-4882.39,0.00023287,2]
[311862648,1705476694998,-25072.90700819,0.00023287,2]
[311862649,1705476695011,-1860.10463731,0.00023287,2]
[311862650,1705476695353,-500.0,0.00022465,2]